Workbook

Sheet WA Gas - Sched 191
D4: GEN SERVICE | E4: LRG GEN SVC | F4: EX LRG GEN SVC | G4: INTERRUPTIBLE | H4: TRANSPORT | I4: TRANSPORT
A5: Source | C5: TOTAL | D5: SCHEDULE 101 | E5: SCH. 111&112 | F5: SCH. 121&122 | G5: SCH. 131&132 | H5: SCHEDULE 146 | I5: SCHEDULE 148
A7: Forecast | B7: Total Annual Therms | C7: =SUM(D7:I7) -> 249602055.2 | D7: =SUM('Revenue - current rates'!K4:V4) -> 118402336.5 | E7: =SUM('Revenue - current rates'!K5:V5) -> 47863180.02 | F7: =SUM('Revenue - current rates'!K6:V6) -> 5844811.458 | G7: =SUM('Revenue - current rates'!K7:V7) -> 949947.5519 | H7: =SUM('Revenue - current rates'!K8:V8) -> 29225570.62 | I7: =SUM('Revenue - current rates'!K9:V9) -> 47316209
B9: Present DSM Rates | D9: 0.0231 | E9: 0.01824 | F9: 0.0163 | G9: 0.01476 | H9: 0 | I9: 0
B11: Present Gross DSM Revenue | C11: =SUM(D11:I11) -> 3717410.03 | D11: =D7*D9 -> 2735093.974 | E11: =E7*E9 -> 873024.4035 | F11: =F7*F9 -> 95270.42676 | G11: =G7*G9 -> 14021.22587 | H11: =H7*H9 -> 0 | I11: 0
A13: UG-140189 | B13: Base Revenue | C13: =SUM(D13:I13) -> 157419000 | D13: 116589000 | E13: 35906000 | F13: 4113000 | G13: 811000
B15: Percentage of Current Base Volumetric Revenue | C15: =SUM(D15:H15) -> 1 | D15: =D13/$C$13 -> 0.7406285137 | E15: =E13/$C$13 -> 0.2280919076 | F15: 0.02612772283 | G15: 0.005151855875
B17: Revenue Requirement | C17: 4395607.636
B19: Revenue Spread Based on Current Allocation | C19: =SUM(D19:H19) -> 4395607.636 | D19: =$C$17*D15 -> 3255512.35 | E19: =$C$17*E15 -> 1002602.531 | F19: 114847.218 | G19: 22645.53702
B21: DSM Revenue Increase <Decrease> | C21: =SUM(D21:H21) -> 678197.6058 | D21: =D19-D11 -> 520418.3763 | E21: =E19-E11 -> 129578.1271 | F21: 19576.79122 | G21: 8624.311158
B23: Proposed Rates | D23: =D19/D7 -> 0.02749533874 | E23: =E19/E7 -> 0.02094726114 | F23: 0.01964943075 | G23: 0.02383872349
B25: Percentage Increase <Decrease> | D25: =D23/D9-1 -> 0.1902744042 | E25: =E23/E9-1 -> 0.1484244044 | F25: 0.205486549 | G25: 0.6150896676
B27: Present Billed Revenue | C27: =SUM(D27:I27) -> 174809000 | D27: 126234000 | E27: 39285000 | F27: 4345000 | G27: 762000 | H27: 2576000 | I27: 1607000
B29: Proposed Billed Revenue | C29: =SUM(D29:I29) -> 175487197.6 | D29: =D27+D21 -> 126754418.4 | E29: =E27+E21 -> 39414578.13 | F29: 4364576.791 | G29: 770624.3112 | H29: 2576000 | I29: 1607000
B31: Overall Billed Percentage Increase <Decrease> | C31: =C29/C27-1 -> 0.00387964925 | D31: =D29/D27-1 -> 0.004122648227 | E31: =E29/E27-1 -> 0.003298412298 | F31: 0.004505590614 | G31: 0.01131799365 | H31: 0 | I31: 0
B33: Average Monthly Bill @ 68 Therms | D33: =(D23-D9)*68 -> 0.2988830341
B35: Present DSM Revenue as a Percentage of Billed Revenue | C35: =C11/C27 -> 0.02126555286
A38: UG-140189 | B38: Revenue Conversion Factor | C38: =RCF!C25 -> 0.954817
B40: Proposed Net DSM Revenue | C40: =SUM(D40:I40) -> 4197000.896 | D40: =D19*$C$38 -> 3108418.536 | E40: =E19*$C$38 -> 957301.9405 | F40: 109658.0761 | G40: 21622.34372 | H40: 0 | I40: 0
B42: Proposed DSM Revenue as a % of Billed Revenue | C42: =C19/C27 -> 0.02514520211

Sheet Revenue - current rates
A3: Forecasted Usage | D3: 2015-04-01 | E3: 2015-05-01 | F3: 2015-06-01 | G3: 2015-07-01 | H3: 2015-08-01 | I3: 2015-09-01 | J3: 2015-10-01 | K3: 2015-11-01 | L3: 2015-12-01 | M3: 2016-01-01 | N3: 2016-02-01 | O3: 2016-03-01 | P3: 2016-04-01 | Q3: 2016-05-01 | R3: 2016-06-01 | S3: 2016-07-01 | T3: 2016-08-01 | U3: 2016-09-01 | V3: 2016-10-01 | W3: 2016-11-01 | X3: 2016-12-01 | Y3: 2017-01-01 | Z3: 2017-02-01 | AA3: 2017-03-01 | AB3: 2017-04-01 | AC3: 2017-05-01 | AD3: 2017-06-01 | AE3: 2017-07-01 | AF3: 2017-08-01 | AG3: 2017-09-01 | AH3: 2017-10-01 | AI3: 2017-11-01 | AJ3: 2017-12-01 | AK3: 2018-01-01 | AL3: 2018-02-01 | AM3: 2018-03-01 | AN3: 2018-04-01 | AO3: 2018-05-01 | AP3: 2018-06-01 | AQ3: 2018-07-01
B4: Small Service Schedule 101 | D4: ='Billing Determinants'!C5 -> 9486133.354 | E4: ='Billing Determinants'!D5 -> 5309378.715 | F4: ='Billing Determinants'!E5 -> 3124073.254 | G4: ='Billing Determinants'!F5 -> 2408530.917 | H4: ='Billing Determinants'!G5 -> 2301424.979 | I4: ='Billing Determinants'!H5 -> 2834532.529 | J4: ='Billing Determinants'!I5 -> 7562292.712 | K4: ='Billing Determinants'!J5 -> 14133934.07 | L4: ='Billing Determinants'!K5 -> 20341217.84 | M4: ='Billing Determinants'!L5 -> 20287115.11 | N4: ='Billing Determinants'!M5 -> 17074770.98 | O4: ='Billing Determinants'!N5 -> 14270012.98 | P4: ='Billing Determinants'!O5 -> 9009117.806 | Q4: ='Billing Determinants'!P5 -> 5138480.747 | R4: ='Billing Determinants'!Q5 -> 3122990.778 | S4: ='Billing Determinants'!R5 -> 2319085.372 | T4: ='Billing Determinants'!G15 -> 2359924.515 | U4: ='Billing Determinants'!H15 -> 2749531.371 | V4: ='Billing Determinants'!I15 -> 7596154.964 | W4: ='Billing Determinants'!J15 -> 14516282.9 | X4: ='Billing Determinants'!K15 -> 20641596.25 | Y4: ='Billing Determinants'!L15 -> 20539153.95 | Z4: ='Billing Determinants'!M15 -> 16920096.9 | AA4: ='Billing Determinants'!N15 -> 14522526.75 | AB4: ='Billing Determinants'!O15 -> 9197313.54 | AC4: ='Billing Determinants'!P15 -> 5222946.694 | AD4: ='Billing Determinants'!Q15 -> 3187789.797 | AE4: ='Billing Determinants'!R15 -> 2446827.805 | AF4: ='Billing Determinants'!G25 -> 2382505.85 | AG4: ='Billing Determinants'!H25 -> 2726187.341 | AH4: ='Billing Determinants'!I25 -> 7813140.106 | AI4: ='Billing Determinants'!J25 -> 14724702.56 | AJ4: ='Billing Determinants'!K25 -> 20919815.08 | AK4: ='Billing Determinants'!L25 -> 20754124.24 | AL4: ='Billing Determinants'!M25 -> 17083215.1 | AM4: ='Billing Determinants'!N25 -> 14672743.7 | AN4: ='Billing Determinants'!O25 -> 9302012.47 | AO4: ='Billing Determinants'!P25 -> 5272642.074 | AP4: ='Billing Determinants'!Q25 -> 3269929.267 | AQ4: ='Billing Determinants'!R25 -> 2503113.746
B5: Large Service Schedule 111 | D5: ='Billing Determinants'!C6 -> 3705052.061 | E5: ='Billing Determinants'!D6 -> 2204442.258 | F5: ='Billing Determinants'!E6 -> 1539767.832 | G5: ='Billing Determinants'!F6 -> 1253545.869 | H5: ='Billing Determinants'!G6 -> 1297445.992 | I5: ='Billing Determinants'!H6 -> 1693673.861 | J5: ='Billing Determinants'!I6 -> 4096349.305 | K5: ='Billing Determinants'!J6 -> 5947535.378 | L5: ='Billing Determinants'!K6 -> 7248603.846 | M5: ='Billing Determinants'!L6 -> 7205965.885 | N5: ='Billing Determinants'!M6 -> 6151763.135 | O5: ='Billing Determinants'!N6 -> 5239727.674 | P5: ='Billing Determinants'!O6 -> 3508785.148 | Q5: ='Billing Determinants'!P6 -> 2185289.833 | R5: ='Billing Determinants'!Q6 -> 1649906.459 | S5: ='Billing Determinants'!R6 -> 1379927.025 | T5: ='Billing Determinants'!G16 -> 1394371.344 | U5: ='Billing Determinants'!H16 -> 1774045.294 | V5: ='Billing Determinants'!I16 -> 4177258.999 | W5: ='Billing Determinants'!J16 -> 6117214.108 | X5: ='Billing Determinants'!K16 -> 7590760.029 | Y5: ='Billing Determinants'!L16 -> 7383061.609 | Z5: ='Billing Determinants'!M16 -> 6130099.39 | AA5: ='Billing Determinants'!N16 -> 5375184.398 | AB5: ='Billing Determinants'!O16 -> 3553706.555 | AC5: ='Billing Determinants'!P16 -> 2210765.68 | AD5: ='Billing Determinants'!Q16 -> 1611502.945 | AE5: ='Billing Determinants'!R16 -> 1307545.017 | AF5: ='Billing Determinants'!G26 -> 1370674.111 | AG5: ='Billing Determinants'!H26 -> 1743524.074 | AH5: ='Billing Determinants'!I26 -> 4156430.098 | AI5: ='Billing Determinants'!J26 -> 6271826.311 | AJ5: ='Billing Determinants'!K26 -> 7784391.303 | AK5: ='Billing Determinants'!L26 -> 7522685.401 | AL5: ='Billing Determinants'!M26 -> 6254332.874 | AM5: ='Billing Determinants'!N26 -> 5467385.632 | AN5: ='Billing Determinants'!O26 -> 3620529.924 | AO5: ='Billing Determinants'!P26 -> 2240995.895 | AP5: ='Billing Determinants'!Q26 -> 1600360.768 | AQ5: ='Billing Determinants'!R26 -> 1290293.646
B6: Extra Large Service Schedule 121 | D6: ='Billing Determinants'!C7 -> 412360.5902 | E6: ='Billing Determinants'!D7 -> 309484.8943 | F6: ='Billing Determinants'!E7 -> 306925.749 | G6: ='Billing Determinants'!F7 -> 312947.0326 | H6: ='Billing Determinants'!G7 -> 364280.3772 | I6: ='Billing Determinants'!H7 -> 350431.7463 | J6: ='Billing Determinants'!I7 -> 657669.776 | K6: ='Billing Determinants'!J7 -> 692338.3136 | L6: ='Billing Determinants'!K7 -> 660862.4852 | M6: ='Billing Determinants'!L7 -> 637995.7388 | N6: ='Billing Determinants'!M7 -> 575706.1529 | O6: ='Billing Determinants'!N7 -> 521840.6112 | P6: ='Billing Determinants'!O7 -> 394805.4528 | Q6: ='Billing Determinants'!P7 -> 312062.1578 | R6: ='Billing Determinants'!Q7 -> 318736.0596 | S6: ='Billing Determinants'!R7 -> 322851.1997 | T6: ='Billing Determinants'!G17 -> 354279.566 | U6: ='Billing Determinants'!H17 -> 380119.6552 | V6: ='Billing Determinants'!I17 -> 673214.0649 | W6: ='Billing Determinants'!J17 -> 704359.216 | X6: ='Billing Determinants'!K17 -> 683964.0215 | Y6: ='Billing Determinants'!L17 -> 640881.0028 | Z6: ='Billing Determinants'!M17 -> 557961.3166 | AA6: ='Billing Determinants'!N17 -> 523118.4511 | AB6: ='Billing Determinants'!O17 -> 393503.3534 | AC6: ='Billing Determinants'!P17 -> 315534.0449 | AD6: ='Billing Determinants'!Q17 -> 318649.5669 | AE6: ='Billing Determinants'!R17 -> 319707.8395 | AF6: ='Billing Determinants'!G27 -> 369882.1635 | AG6: ='Billing Determinants'!H27 -> 389233.8257 | AH6: ='Billing Determinants'!I27 -> 677692.0206 | AI6: ='Billing Determinants'!J27 -> 717900.6883 | AJ6: ='Billing Determinants'!K27 -> 689880.5214 | AK6: ='Billing Determinants'!L27 -> 638378.5466 | AL6: ='Billing Determinants'!M27 -> 555845.694 | AM6: ='Billing Determinants'!N27 -> 520168.7565 | AN6: ='Billing Determinants'!O27 -> 392982.4051 | AO6: ='Billing Determinants'!P27 -> 315637.0275 | AP6: ='Billing Determinants'!Q27 -> 316661.6947 | AQ6: ='Billing Determinants'!R27 -> 325350.8989
B7: Interrupt Service Schedule 131 | D7: ='Billing Determinants'!C8 -> 104980.7656 | E7: ='Billing Determinants'!D8 -> 78812.59891 | F7: ='Billing Determinants'!E8 -> 68390.79645 | G7: ='Billing Determinants'!F8 -> 64231.54693 | H7: ='Billing Determinants'!G8 -> 56180.40978 | I7: ='Billing Determinants'!H8 -> 26731.31996 | J7: ='Billing Determinants'!I8 -> 68916.96615 | K7: ='Billing Determinants'!J8 -> 101811.9496 | L7: ='Billing Determinants'!K8 -> 131967.627 | M7: ='Billing Determinants'!L8 -> 127188.6752 | N7: ='Billing Determinants'!M8 -> 122019.4029 | O7: ='Billing Determinants'!N8 -> 107766.2875 | P7: ='Billing Determinants'!O8 -> 79730.23435 | Q7: ='Billing Determinants'!P8 -> 60062.84095 | R7: ='Billing Determinants'!Q8 -> 50784.12652 | S7: ='Billing Determinants'!R8 -> 42486.69994 | T7: ='Billing Determinants'!G18 -> 28035.04951 | U7: ='Billing Determinants'!H18 -> 28583.19732 | V7: ='Billing Determinants'!I18 -> 69511.46123 | W7: ='Billing Determinants'!J18 -> 102567.89 | X7: ='Billing Determinants'!K18 -> 135869.8622 | Y7: ='Billing Determinants'!L18 -> 127430.8508 | Z7: ='Billing Determinants'!M18 -> 118117.0664 | AA7: ='Billing Determinants'!N18 -> 108158.8687 | AB7: ='Billing Determinants'!O18 -> 79591.33983 | AC7: ='Billing Determinants'!P18 -> 60682.96849 | AD7: ='Billing Determinants'!Q18 -> 50564.66182 | AE7: ='Billing Determinants'!R18 -> 41734.40779 | AF7: ='Billing Determinants'!G28 -> 28985.90745 | AG7: ='Billing Determinants'!H28 -> 29010.98369 | AH7: ='Billing Determinants'!I28 -> 69528.03271 | AI7: ='Billing Determinants'!J28 -> 104236.867 | AJ7: ='Billing Determinants'!K28 -> 136976.7516 | AK7: ='Billing Determinants'!L28 -> 127051.0271 | AL7: ='Billing Determinants'!M28 -> 117864.1021 | AM7: ='Billing Determinants'!N28 -> 107748.3542 | AN7: ='Billing Determinants'!O28 -> 79563.37256 | AO7: ='Billing Determinants'!P28 -> 60657.15287 | AP7: ='Billing Determinants'!Q28 -> 50094.73859 | AQ7: ='Billing Determinants'!R28 -> 42246.79207
B8: Transport Service Schedule 146 | D8: ='Billing Determinants'!C9 -> 2508687.399 | E8: ='Billing Determinants'!D9 -> 2163117.278 | F8: ='Billing Determinants'!E9 -> 1907188.84 | G8: ='Billing Determinants'!F9 -> 1705251.68 | H8: ='Billing Determinants'!G9 -> 1842139.525 | I8: ='Billing Determinants'!H9 -> 1715712.202 | J8: ='Billing Determinants'!I9 -> 1866429.895 | K8: ='Billing Determinants'!J9 -> 2553938.815 | L8: ='Billing Determinants'!K9 -> 2721719.199 | M8: ='Billing Determinants'!L9 -> 3216723.14 | N8: ='Billing Determinants'!M9 -> 3461087.387 | O8: ='Billing Determinants'!N9 -> 2885773.053 | P8: ='Billing Determinants'!O9 -> 2920481.041 | Q8: ='Billing Determinants'!P9 -> 2399785.82 | R8: ='Billing Determinants'!Q9 -> 2081076.311 | S8: ='Billing Determinants'!R9 -> 1804359.896 | T8: ='Billing Determinants'!G19 -> 1614824.344 | U8: ='Billing Determinants'!H19 -> 1704318.754 | V8: ='Billing Determinants'!I19 -> 1861482.862 | W8: ='Billing Determinants'!J19 -> 2552504.954 | X8: ='Billing Determinants'!K19 -> 2731334.179 | Y8: ='Billing Determinants'!L19 -> 3231444.722 | Z8: ='Billing Determinants'!M19 -> 3503435.284 | AA8: ='Billing Determinants'!N19 -> 2915517.921 | AB8: ='Billing Determinants'!O19 -> 2936559.715 | AC8: ='Billing Determinants'!P19 -> 2400940.356 | AD8: ='Billing Determinants'!Q19 -> 2084993.792 | AE8: ='Billing Determinants'!R19 -> 1810389.497 | AF8: ='Billing Determinants'!G29 -> 1622602.839 | AG8: ='Billing Determinants'!H29 -> 1713150.75 | AH8: ='Billing Determinants'!I29 -> 1871149.891 | AI8: ='Billing Determinants'!J29 -> 2563087.109 | AJ8: ='Billing Determinants'!K29 -> 2742592.098 | AK8: ='Billing Determinants'!L29 -> 3242869.016 | AL8: ='Billing Determinants'!M29 -> 3514583.474 | AM8: ='Billing Determinants'!N29 -> 2923818.064 | AN8: ='Billing Determinants'!O29 -> 2942858.149 | AO8: ='Billing Determinants'!P29 -> 2406604.31 | AP8: ='Billing Determinants'!Q29 -> 2090991.525 | AQ8: ='Billing Determinants'!R29 -> 1816495.964
B9: Special Contract Transport | D9: ='Billing Determinants'!C10 -> 3798396 | E9: ='Billing Determinants'!D10 -> 3444836 | F9: ='Billing Determinants'!E10 -> 3394978 | G9: ='Billing Determinants'!F10 -> 3188893 | H9: ='Billing Determinants'!G10 -> 3326120 | I9: ='Billing Determinants'!H10 -> 3372541 | J9: ='Billing Determinants'!I10 -> 3433105 | K9: ='Billing Determinants'!J10 -> 4003772 | L9: ='Billing Determinants'!K10 -> 4310120 | M9: ='Billing Determinants'!L10 -> 4662531 | N9: ='Billing Determinants'!M10 -> 4750261 | O9: ='Billing Determinants'!N10 -> 4271089 | P9: ='Billing Determinants'!O10 -> 4296316 | Q9: ='Billing Determinants'!P10 -> 3876453 | R9: ='Billing Determinants'!Q10 -> 3550405 | S9: ='Billing Determinants'!R10 -> 3442600 | T9: ='Billing Determinants'!G20 -> 3272157 | U9: ='Billing Determinants'!H20 -> 3407902 | V9: ='Billing Determinants'!I20 -> 3472603 | W9: ='Billing Determinants'!J20 -> 4046445 | X9: ='Billing Determinants'!K20 -> 4355432 | Y9: ='Billing Determinants'!L20 -> 4709037 | Z9: ='Billing Determinants'!M20 -> 4797603 | AA9: ='Billing Determinants'!N20 -> 4318999 | AB9: ='Billing Determinants'!O20 -> 4344578 | AC9: ='Billing Determinants'!P20 -> 3924903 | AD9: ='Billing Determinants'!Q20 -> 3598917 | AE9: ='Billing Determinants'!R20 -> 3491074 | AF9: ='Billing Determinants'!G30 -> 3320518 | AG9: ='Billing Determinants'!H30 -> 3456088 | AH9: ='Billing Determinants'!I30 -> 3520570 | AI9: ='Billing Determinants'!J30 -> 4094156 | AJ9: ='Billing Determinants'!K30 -> 4402860 | AK9: ='Billing Determinants'!L30 -> 4756082 | AL9: ='Billing Determinants'!M30 -> 4844249 | AM9: ='Billing Determinants'!N30 -> 4365230 | AN9: ='Billing Determinants'!O30 -> 4390387 | AO9: ='Billing Determinants'!P30 -> 3970281 | AP9: ='Billing Determinants'!Q30 -> 3643858 | AQ9: ='Billing Determinants'!R30 -> 3535571
A10: Total Forecasted Usage | D10: =SUM(D4:D9) -> 20015610.17 | E10: 13510071.74 | F10: 10341324.47 | G10: 8933400.045 | H10: 9187591.283 | I10: 9993622.659 | J10: 17684763.65 | K10: 27433330.53 | L10: 35414491 | M10: 36137519.55 | N10: 32135608.05 | O10: 27296209.61 | P10: 20209235.68 | Q10: 13972134.4 | R10: 10773898.73 | S10: 9311310.193 | T10: =SUM(T4:T9) -> 9023591.818 | U10: 10044500.27 | V10: 17850225.35 | W10: 28039374.06 | X10: 36138956.35 | Y10: 36631009.14 | Z10: 32027312.95 | AA10: 27763505.39 | AB10: 20505252.5 | AC10: =SUM(AC4:AC9) -> 14135772.74 | AD10: 10852417.76 | AE10: 9417278.567 | AF10: =SUM(AF4:AF9) -> 9095168.872 | AG10: 10057194.97 | AH10: 18108510.15 | AI10: 28475909.53 | AJ10: 36676515.76 | AK10: 37041190.23 | AL10: 32370090.24 | AM10: 28057094.51 | AN10: 20728333.32 | AO10: 14266817.46 | AP10: 10971895.99 | AQ10: 9513072.047
A13: DSM Rates
B14: Small Service Schedule 101 | D14: 0.0231 | E14: 0.0231 | F14: 0.0231 | G14: 0.0231 | H14: 0.0231 | I14: 0.0231 | J14: 0.0231 | K14: ='WA Gas - Sched 191'!$D$23 -> 0.02749533874 | L14: ='WA Gas - Sched 191'!$D$23 -> 0.02749533874 | M14: ='WA Gas - Sched 191'!$D$23 -> 0.02749533874 | N14: ='WA Gas - Sched 191'!$D$23 -> 0.02749533874 | O14: ='WA Gas - Sched 191'!$D$23 -> 0.02749533874 | P14: ='WA Gas - Sched 191'!$D$23 -> 0.02749533874 | Q14: ='WA Gas - Sched 191'!$D$23 -> 0.02749533874 | R14: ='WA Gas - Sched 191'!$D$23 -> 0.02749533874 | S14: ='WA Gas - Sched 191'!$D$23 -> 0.02749533874 | T14: ='WA Gas - Sched 191'!$D$23 -> 0.02749533874 | U14: ='WA Gas - Sched 191'!$D$23 -> 0.02749533874 | V14: ='WA Gas - Sched 191'!$D$23 -> 0.02749533874 | W14: ='WA Gas - Sched 191'!$D$23 -> 0.02749533874 | X14: ='WA Gas - Sched 191'!$D$23 -> 0.02749533874 | Y14: ='WA Gas - Sched 191'!$D$23 -> 0.02749533874 | Z14: ='WA Gas - Sched 191'!$D$23 -> 0.02749533874 | AA14: ='WA Gas - Sched 191'!$D$23 -> 0.02749533874 | AB14: ='WA Gas - Sched 191'!$D$23 -> 0.02749533874 | AC14: ='WA Gas - Sched 191'!$D$23 -> 0.02749533874 | AD14: ='WA Gas - Sched 191'!$D$23 -> 0.02749533874 | AE14: ='WA Gas - Sched 191'!$D$23 -> 0.02749533874 | AF14: ='WA Gas - Sched 191'!$D$23 -> 0.02749533874 | AG14: ='WA Gas - Sched 191'!$D$23 -> 0.02749533874 | AH14: ='WA Gas - Sched 191'!$D$23 -> 0.02749533874 | AI14: ='WA Gas - Sched 191'!$D$23 -> 0.02749533874 | AJ14: ='WA Gas - Sched 191'!$D$23 -> 0.02749533874 | AK14: ='WA Gas - Sched 191'!$D$23 -> 0.02749533874 | AL14: ='WA Gas - Sched 191'!$D$23 -> 0.02749533874 | AM14: ='WA Gas - Sched 191'!$D$23 -> 0.02749533874 | AN14: ='WA Gas - Sched 191'!$D$23 -> 0.02749533874 | AO14: ='WA Gas - Sched 191'!$D$23 -> 0.02749533874 | AP14: ='WA Gas - Sched 191'!$D$23 -> 0.02749533874 | AQ14: ='WA Gas - Sched 191'!$D$23 -> 0.02749533874
B15: Large Service Schedule 111 | D15: 0.01824 | E15: 0.01824 | F15: 0.01824 | G15: 0.01824 | H15: 0.01824 | I15: 0.01824 | J15: 0.01824 | K15: ='WA Gas - Sched 191'!$E$23 -> 0.02094726114 | L15: ='WA Gas - Sched 191'!$E$23 -> 0.02094726114 | M15: ='WA Gas - Sched 191'!$E$23 -> 0.02094726114 | N15: ='WA Gas - Sched 191'!$E$23 -> 0.02094726114 | O15: ='WA Gas - Sched 191'!$E$23 -> 0.02094726114 | P15: ='WA Gas - Sched 191'!$E$23 -> 0.02094726114 | Q15: ='WA Gas - Sched 191'!$E$23 -> 0.02094726114 | R15: ='WA Gas - Sched 191'!$E$23 -> 0.02094726114 | S15: ='WA Gas - Sched 191'!$E$23 -> 0.02094726114 | T15: ='WA Gas - Sched 191'!$E$23 -> 0.02094726114 | U15: ='WA Gas - Sched 191'!$E$23 -> 0.02094726114 | V15: ='WA Gas - Sched 191'!$E$23 -> 0.02094726114 | W15: ='WA Gas - Sched 191'!$E$23 -> 0.02094726114 | X15: ='WA Gas - Sched 191'!$E$23 -> 0.02094726114 | Y15: ='WA Gas - Sched 191'!$E$23 -> 0.02094726114 | Z15: ='WA Gas - Sched 191'!$E$23 -> 0.02094726114 | AA15: ='WA Gas - Sched 191'!$E$23 -> 0.02094726114 | AB15: ='WA Gas - Sched 191'!$E$23 -> 0.02094726114 | AC15: ='WA Gas - Sched 191'!$E$23 -> 0.02094726114 | AD15: ='WA Gas - Sched 191'!$E$23 -> 0.02094726114 | AE15: ='WA Gas - Sched 191'!$E$23 -> 0.02094726114 | AF15: ='WA Gas - Sched 191'!$E$23 -> 0.02094726114 | AG15: ='WA Gas - Sched 191'!$E$23 -> 0.02094726114 | AH15: ='WA Gas - Sched 191'!$E$23 -> 0.02094726114 | AI15: ='WA Gas - Sched 191'!$E$23 -> 0.02094726114 | AJ15: ='WA Gas - Sched 191'!$E$23 -> 0.02094726114 | AK15: ='WA Gas - Sched 191'!$E$23 -> 0.02094726114 | AL15: ='WA Gas - Sched 191'!$E$23 -> 0.02094726114 | AM15: ='WA Gas - Sched 191'!$E$23 -> 0.02094726114 | AN15: ='WA Gas - Sched 191'!$E$23 -> 0.02094726114 | AO15: ='WA Gas - Sched 191'!$E$23 -> 0.02094726114 | AP15: ='WA Gas - Sched 191'!$E$23 -> 0.02094726114 | AQ15: ='WA Gas - Sched 191'!$E$23 -> 0.02094726114
B16: Extra Large Service Schedule 121 | D16: 0.0163 | E16: 0.0163 | F16: 0.0163 | G16: 0.0163 | H16: 0.0163 | I16: 0.0163 | J16: 0.0163 | K16: ='WA Gas - Sched 191'!$F$23 -> 0.01964943075 | L16: ='WA Gas - Sched 191'!$F$23 -> 0.01964943075 | M16: ='WA Gas - Sched 191'!$F$23 -> 0.01964943075 | N16: ='WA Gas - Sched 191'!$F$23 -> 0.01964943075 | O16: ='WA Gas - Sched 191'!$F$23 -> 0.01964943075 | P16: ='WA Gas - Sched 191'!$F$23 -> 0.01964943075 | Q16: ='WA Gas - Sched 191'!$F$23 -> 0.01964943075 | R16: ='WA Gas - Sched 191'!$F$23 -> 0.01964943075 | S16: ='WA Gas - Sched 191'!$F$23 -> 0.01964943075 | T16: ='WA Gas - Sched 191'!$F$23 -> 0.01964943075 | U16: ='WA Gas - Sched 191'!$F$23 -> 0.01964943075 | V16: ='WA Gas - Sched 191'!$F$23 -> 0.01964943075 | W16: ='WA Gas - Sched 191'!$F$23 -> 0.01964943075 | X16: ='WA Gas - Sched 191'!$F$23 -> 0.01964943075 | Y16: ='WA Gas - Sched 191'!$F$23 -> 0.01964943075 | Z16: ='WA Gas - Sched 191'!$F$23 -> 0.01964943075 | AA16: ='WA Gas - Sched 191'!$F$23 -> 0.01964943075 | AB16: ='WA Gas - Sched 191'!$F$23 -> 0.01964943075 | AC16: ='WA Gas - Sched 191'!$F$23 -> 0.01964943075 | AD16: ='WA Gas - Sched 191'!$F$23 -> 0.01964943075 | AE16: ='WA Gas - Sched 191'!$F$23 -> 0.01964943075 | AF16: ='WA Gas - Sched 191'!$F$23 -> 0.01964943075 | AG16: ='WA Gas - Sched 191'!$F$23 -> 0.01964943075 | AH16: ='WA Gas - Sched 191'!$F$23 -> 0.01964943075 | AI16: ='WA Gas - Sched 191'!$F$23 -> 0.01964943075 | AJ16: ='WA Gas - Sched 191'!$F$23 -> 0.01964943075 | AK16: ='WA Gas - Sched 191'!$F$23 -> 0.01964943075 | AL16: ='WA Gas - Sched 191'!$F$23 -> 0.01964943075 | AM16: ='WA Gas - Sched 191'!$F$23 -> 0.01964943075 | AN16: ='WA Gas - Sched 191'!$F$23 -> 0.01964943075 | AO16: ='WA Gas - Sched 191'!$F$23 -> 0.01964943075 | AP16: ='WA Gas - Sched 191'!$F$23 -> 0.01964943075 | AQ16: ='WA Gas - Sched 191'!$F$23 -> 0.01964943075
B17: Interrupt Service Schedule 131 | D17: 0.01476 | E17: 0.01476 | F17: 0.01476 | G17: 0.01476 | H17: 0.01476 | I17: 0.01476 | J17: 0.01476 | K17: ='WA Gas - Sched 191'!$G$23 -> 0.02383872349 | L17: ='WA Gas - Sched 191'!$G$23 -> 0.02383872349 | M17: ='WA Gas - Sched 191'!$G$23 -> 0.02383872349 | N17: ='WA Gas - Sched 191'!$G$23 -> 0.02383872349 | O17: ='WA Gas - Sched 191'!$G$23 -> 0.02383872349 | P17: ='WA Gas - Sched 191'!$G$23 -> 0.02383872349 | Q17: ='WA Gas - Sched 191'!$G$23 -> 0.02383872349 | R17: ='WA Gas - Sched 191'!$G$23 -> 0.02383872349 | S17: ='WA Gas - Sched 191'!$G$23 -> 0.02383872349 | T17: ='WA Gas - Sched 191'!$G$23 -> 0.02383872349 | U17: ='WA Gas - Sched 191'!$G$23 -> 0.02383872349 | V17: ='WA Gas - Sched 191'!$G$23 -> 0.02383872349 | W17: ='WA Gas - Sched 191'!$G$23 -> 0.02383872349 | X17: ='WA Gas - Sched 191'!$G$23 -> 0.02383872349 | Y17: ='WA Gas - Sched 191'!$G$23 -> 0.02383872349 | Z17: ='WA Gas - Sched 191'!$G$23 -> 0.02383872349 | AA17: ='WA Gas - Sched 191'!$G$23 -> 0.02383872349 | AB17: ='WA Gas - Sched 191'!$G$23 -> 0.02383872349 | AC17: ='WA Gas - Sched 191'!$G$23 -> 0.02383872349 | AD17: ='WA Gas - Sched 191'!$G$23 -> 0.02383872349 | AE17: ='WA Gas - Sched 191'!$G$23 -> 0.02383872349 | AF17: ='WA Gas - Sched 191'!$G$23 -> 0.02383872349 | AG17: ='WA Gas - Sched 191'!$G$23 -> 0.02383872349 | AH17: ='WA Gas - Sched 191'!$G$23 -> 0.02383872349 | AI17: ='WA Gas - Sched 191'!$G$23 -> 0.02383872349 | AJ17: ='WA Gas - Sched 191'!$G$23 -> 0.02383872349 | AK17: ='WA Gas - Sched 191'!$G$23 -> 0.02383872349 | AL17: ='WA Gas - Sched 191'!$G$23 -> 0.02383872349 | AM17: ='WA Gas - Sched 191'!$G$23 -> 0.02383872349 | AN17: ='WA Gas - Sched 191'!$G$23 -> 0.02383872349 | AO17: ='WA Gas - Sched 191'!$G$23 -> 0.02383872349 | AP17: ='WA Gas - Sched 191'!$G$23 -> 0.02383872349 | AQ17: ='WA Gas - Sched 191'!$G$23 -> 0.02383872349
B18: Transport Service Schedule 146
B19: Special Contract Transport
B20: Total
A23: Gross DSM Revenue | D23: =D3 -> 2015-04-01 | E23: =E3 -> 2015-05-01 | F23: 2015-06-01 | G23: 2015-07-01 | H23: 2015-08-01 | I23: 2015-09-01 | J23: 2015-10-01 | K23: 2015-11-01 | L23: 2015-12-01 | M23: 2016-01-01 | N23: 2016-02-01 | O23: 2016-03-01 | P23: 2016-04-01 | Q23: 2016-05-01 | R23: 2016-06-01 | S23: 2016-07-01 | T23: =T3 -> 2016-08-01 | U23: 2016-09-01 | V23: 2016-10-01 | W23: 2016-11-01 | X23: 2016-12-01 | Y23: 2017-01-01 | Z23: 2017-02-01 | AA23: 2017-03-01 | AB23: 2017-04-01 | AC23: =AC3 -> 2017-05-01 | AD23: 2017-06-01 | AE23: 2017-07-01 | AF23: =AF3 -> 2017-08-01 | AG23: 2017-09-01 | AH23: 2017-10-01 | AI23: 2017-11-01 | AJ23: 2017-12-01 | AK23: 2018-01-01 | AL23: 2018-02-01 | AM23: 2018-03-01 | AN23: 2018-04-01 | AO23: 2018-05-01 | AP23: 2018-06-01 | AQ23: 2018-07-01
B24: Small Service Schedule 101 | D24: =D4*D14 -> 219129.6805 | E24: 122646.6483 | F24: 72166.09217 | G24: 55637.06418 | H24: 53162.91701 | I24: 65477.70141 | J24: 174688.9616 | K24: 388617.3049 | L24: 559288.6749 | M24: 557801.1021 | N24: 469476.6118 | O24: 392358.8407 | P24: 247708.7458 | Q24: 141284.2687 | R24: 85867.68931 | S24: 63764.03785 | T24: =T4*T14 -> 64886.92393 | U24: 75599.29643 | V24: 208858.8538 | W24: 399130.1154 | X24: 567547.6811 | Y24: 564730.9953 | Z24: 465223.7956 | AA24: 399301.7923 | AB24: 252883.2513 | AC24: =AC4*AC14 -> 143606.6885 | AD24: 87649.36028 | AE24: 67276.35934 | AF24: =AF4*AF14 -> 65507.80539 | AG24: 74957.44441 | AH24: 214824.9338 | AI24: 404860.6846 | AJ24: 575197.4021 | AK24: 570641.6761 | AL24: 469708.7859 | AM24: 403432.0583 | AN24: 255761.9838 | AO24: 144973.0799 | AP24: 89907.81285 | AQ24: 68823.96036
B25: Large Service Schedule 111 | D25: =D5*D15 -> 67580.14959 | E25: 40209.02679 | F25: 28085.36525 | G25: 22864.67665 | H25: 23665.4149 | I25: 30892.61123 | J25: 74717.41133 | K25: 124584.5767 | L25: 151838.3976 | M25: 150945.2491 | N25: 128862.5888 | O25: 109757.9439 | P25: 73499.43876 | Q25: 45775.83679 | R25: 34561.02145 | S25: 28905.69174 | T25: =T5*T15 -> 29208.26066 | U25: 37161.39004 | V25: 87502.13509 | W25: 128138.8814 | X25: 159005.6326 | Y25: 154654.9195 | Z25: 128408.7927 | AA25: 112595.3913 | AB25: 74440.41921 | AC25: =AC5*AC15 -> 46309.486 | AD25: 33756.57301 | AE25: 27389.48692 | AF25: =AF5*AF15 -> 28711.86854 | AG25: 36522.05408 | AH25: 87065.82666 | AI25: 131377.5835 | AJ25: 163061.6774 | AK25: 157579.6555 | AL25: 131011.144 | AM25: 114526.7546 | AN25: 75840.18577 | AO25: 46942.72623 | AP25: 33523.17492 | AQ25: 27028.11794
B26: Extra Large Service Schedule 121 | D26: =D6*D16 -> 6721.47762 | E26: 5044.603777 | F26: 5002.889709 | G26: 5101.036632 | H26: 5937.770148 | I26: 5712.037465 | J26: 10720.01735 | K26: 13604.05375 | L26: 12985.57164 | M26: 12536.25309 | N26: 11312.29818 | O26: 10253.87095 | P26: 7757.702403 | Q26: 6131.843759 | R26: 6262.98213 | S26: 6343.842291 | T26: =T6*T16 -> 6961.391798 | U26: 7469.134842 | V26: 13228.27315 | W26: 13840.25764 | X26: 13439.50368 | Y26: 12592.94688 | Z26: 10963.62225 | AA26: 10278.97978 | AB26: 7732.116893 | AC26: =AC6*AC16 -> 6200.064365 | AD26: 6261.282598 | AE26: 6282.077052 | AF26: =AF6*AF16 -> 7267.973956 | AG26: 7648.223104 | AH26: 13316.26243 | AI26: 14106.33986 | AJ26: 13555.75953 | AK26: 12543.77504 | AL26: 10922.05147 | AM26: 10221.01996 | AN26: 7721.880554 | AO26: 6202.087914 | AP26: 6222.222041 | AQ26: 6392.959956
B27: Interrupt Service Schedule 131 | D27: =D7*D17 -> 1549.516101 | E27: 1163.27396 | F27: 1009.448156 | G27: 948.0576327 | H27: 829.2228483 | I27: 394.5542825 | J27: 1017.21442 | K27: 2427.066914 | L27: 3145.93977 | M27: 3032.015659 | N27: 2908.786806 | O27: 2569.010731 | P27: 1900.667011 | Q27: 1431.821458 | R27: 1210.62875 | S27: 1012.828692 | T27: =T7*T17 -> 668.3197934 | U27: 681.3869374 | V27: 1657.064504 | W27: 2445.087569 | X27: 3238.964077 | Y27: 3037.788816 | Z27: 2815.760086 | AA27: 2578.369364 | AB27: 1897.355943 | AC27: =AC7*AC17 -> 1446.604507 | AD27: 1205.396992 | AE27: 994.8950075 | AF27: =AF7*AF17 -> 690.987033 | AG27: 691.5848185 | AH27: 1657.459547 | AI27: 2484.87385 | AJ27: 3265.350905 | AK27: 3028.734305 | AL27: 2809.72974 | AM27: 2568.583222 | AN27: 1896.689239 | AO27: 1445.989095 | AP27: 1194.194622 | AQ27: 1007.109595
B28: Transport Service Schedule 146
B29: Special Contract Transport
B30: Total | D30: =SUM(D24:D29) -> 294980.8238 | E30: =SUM(E24:E29) -> 169063.5528 | F30: 106263.7953 | G30: 84550.83509 | H30: 83595.32491 | I30: 102476.9044 | J30: 261143.6047 | K30: 529233.0023 | L30: 727258.5839 | M30: 724314.62 | N30: 612560.2857 | O30: 514939.6662 | P30: 330866.554 | Q30: 194623.7707 | R30: 127902.3216 | S30: 100026.4006 | T30: =SUM(T24:T29) -> 101724.8962 | U30: 120911.2082 | V30: 311246.3266 | W30: 543554.342 | X30: 743231.7814 | Y30: 735016.6506 | Z30: 607411.9706 | AA30: 524754.5327 | AB30: 336953.1433 | AC30: =SUM(AC24:AC29) -> 197562.8434 | AD30: 128872.6129 | AE30: 101942.8183 | AF30: =SUM(AF24:AF29) -> 102178.6349 | AG30: 119819.3064 | AH30: 316864.4824 | AI30: 552829.4819 | AJ30: 755080.1899 | AK30: 743793.841 | AL30: 614451.711 | AM30: 530748.4161 | AN30: 341220.7394 | AO30: 199563.8831 | AP30: 130847.4044 | AQ30: 103252.1478
A32: Net DSM Revenue | C32: =RCF!C25 -> 0.954817 | D32: =D23 -> 2015-04-01 | E32: =E23 -> 2015-05-01 | F32: 2015-06-01 | G32: 2015-07-01 | H32: 2015-08-01 | I32: 2015-09-01 | J32: 2015-10-01 | K32: 2015-11-01 | L32: 2015-12-01 | M32: 2016-01-01 | N32: 2016-02-01 | O32: 2016-03-01 | P32: 2016-04-01 | Q32: 2016-05-01 | R32: 2016-06-01 | S32: 2016-07-01 | T32: =T23 -> 2016-08-01 | U32: 2016-09-01 | V32: 2016-10-01 | W32: 2016-11-01 | X32: 2016-12-01 | Y32: 2017-01-01 | Z32: 2017-02-01 | AA32: 2017-03-01 | AB32: 2017-04-01 | AC32: =AC23 -> 2017-05-01 | AD32: 2017-06-01 | AE32: 2017-07-01 | AF32: =AF23 -> 2017-08-01 | AG32: 2017-09-01 | AH32: 2017-10-01 | AI32: 2017-11-01 | AJ32: 2017-12-01 | AK32: 2018-01-01 | AL32: 2018-02-01 | AM32: 2018-03-01 | AN32: 2018-04-01 | AO32: 2018-05-01 | AP32: 2018-06-01 | AQ32: 2018-07-01
B33: Small Service Schedule 101 | D33: =D24*$C$32 -> 209228.7441 | E33: =E24*$C$32 -> 117105.1048 | F33: 68905.41163 | G33: 53123.21471 | H33: 50760.85693 | I33: 62519.22243 | J33: 166795.9903 | K33: 371058.4092 | L33: 534018.3347 | M33: 532597.9749 | N33: 448264.2501 | O33: 374630.8912 | P33: 236516.5215 | Q33: 134900.6216 | R33: 81987.9295 | S33: =S24*$C$32 -> 60882.98733 | T33: =T24*$C$32 -> 61955.13805 | U33: 72183.49342 | V33: 199421.9842 | W33: 381096.2194 | X33: 541904.1742 | Y33: 539214.7548 | Z33: 444203.5888 | AA33: 381260.1394 | AB33: 241457.2273 | AC33: =AC24*$C$32 -> 137118.1075 | AD33: =AD24*$C$32 -> 83689.09924 | AE33: 64236.61159 | AF33: =AF24*$C$32 -> 62547.96622 | AG33: 71570.6422 | AH33: 205118.4988 | AI33: 386567.8643 | AJ33: 549208.2578 | AK33: 544858.3732 | AL33: 448485.9338 | AM33: 385203.7876 | AN33: 244205.8901 | AO33: 138422.7612 | AP33: 85845.50814 | AQ33: 65714.28735
B34: Large Service Schedule 111 | D34: =D25*$C$32 -> 64526.67569 | E34: 38392.26233 | F34: 26816.38419 | G34: 21831.58196 | H34: 22596.14045 | I34: 29496.79038 | J34: 71341.45453 | K34: 118955.4718 | L34: 144977.8833 | M34: 144125.09 | N34: 123040.1905 | O34: 104798.7507 | P34: 70178.51362 | Q34: 43707.54716 | R34: 32999.45081 | S34: 27599.64587 | T34: =T25*$C$32 -> 27888.54382 | U34: 35482.32695 | V34: 83548.52612 | W34: 122349.1823 | X34: 151821.2811 | Y34: 147667.1463 | Z34: 122606.8982 | AA34: 107507.9937 | AB34: 71076.97775 | AC34: =AC25*$C$32 -> 44217.0845 | AD34: 32231.34977 | AE34: 26151.94773 | AF34: =AF25*$C$32 -> 27414.58019 | AG34: 34871.87811 | AH34: 83131.93141 | AI34: 125441.5502 | AJ34: 155694.0616 | AK34: 150459.734 | AL34: 125091.6674 | AM34: 109352.0922 | AN34: 72413.49866 | AO34: 44821.71303 | AP34: 32008.4973 | AQ34: 25806.90649
B35: Extra Large Service Schedule 121 | D35: =D26*$C$32 -> 6417.781096 | E35: 4816.673444 | F35: 4776.844143 | G35: 4870.556494 | H35: 5669.48388 | I35: 5453.950476 | J35: 10235.65481 | K35: 12989.38179 | L35: 12398.84455 | M35: 11969.82756 | N35: 10801.17461 | O35: 9790.5703 | P35: 7407.186135 | Q35: 5854.788663 | R35: 5980.001808 | S35: 6057.208465 | T35: =T26*$C$32 -> 6646.855233 | U35: 7131.656922 | V35: 12630.58008 | W35: 13214.91328 | X35: 12832.26658 | Y35: 12023.95976 | Z35: 10468.25291 | AA35: 9814.544635 | AB35: 7382.756655 | AC35: =AC26*$C$32 -> 5919.926857 | AD35: 5978.379066 | AE35: 5998.233964 | AF35: =AF26*$C$32 -> 6939.585089 | AG35: 7302.653439 | AH35: 12714.59374 | AI35: 13468.97311 | AJ35: 12943.26965 | AK35: 11977.00965 | AL35: 10428.56042 | AM35: 9759.203613 | AN35: 7372.982825 | AO35: 5921.858975 | AP35: 5941.083382 | AQ35: 6104.106847
B36: Interrupt Service Schedule 131 | D36: =D27*$C$32 -> 1479.504315 | E36: 1110.713753 | F36: 963.8382596 | G36: 905.2215446 | H36: 791.7560724 | I36: 376.7271364 | J36: 971.2536213 | K36: 2317.404749 | L36: 3003.796773 | M36: 2895.020096 | N36: 2777.359091 | O36: 2452.935119 | P36: 1814.789173 | Q36: 1367.127469 | R36: 1155.928911 | S36: 967.0660532 | T36: =T27*$C$32 -> 638.1231002 | U36: 650.5998314 | V36: 1582.193358 | W36: 2334.611177 | X36: 3092.617963 | Y36: 2900.532404 | Z36: 2688.535598 | AA36: 2461.870901 | AB36: 1811.627709 | AC36: =AC27*$C$32 -> 1381.242575 | AD36: 1150.933539 | AE36: 949.9426664 | AF36: =AF27*$C$32 -> 659.7661659 | AG36: 660.3369416 | AH36: 1582.570552 | AI36: 2372.599795 | AJ36: 3117.812555 | AK36: 2891.887003 | AL36: 2682.777721 | AM36: 2452.526927 | AN36: 1810.991129 | AO36: 1380.65497 | AP36: 1140.237326 | AQ36: 961.6053619
B37: Transport Service Schedule 146
B38: Special Contract Transport
B39: Total | D39: =SUM(D33:D38) -> 281652.7052 | E39: 161424.7543 | F39: 101462.4782 | G39: 80730.57471 | H39: 79818.23734 | I39: 97846.69042 | J39: 249344.3532 | K39: 505320.6675 | L39: 694398.8593 | M39: 691587.9125 | N39: 584882.9743 | O39: 491673.1473 | P39: 315917.0105 | Q39: 185830.0849 | R39: 122123.311 | S39: 95506.90772 | T39: =SUM(T33:T38) -> 97128.6602 | U39: 115448.0771 | V39: 297183.2838 | W39: 518994.9261 | X39: 709650.3398 | Y39: 701806.3932 | Z39: 579967.2756 | AA39: 501044.5486 | AB39: 321728.5894 | AC39: =SUM(AC33:AC38) -> 188636.3615 | AD39: 123049.7616 | AE39: 97336.73596 | AF39: =SUM(AF33:AF38) -> 97561.89766 | AG39: 114405.5107 | AH39: 302547.5945 | AI39: 527850.9874 | AJ39: 720963.4017 | AK39: 710187.0038 | AL39: 586688.9394 | AM39: 506767.6104 | AN39: 325803.3627 | AO39: 190546.9882 | AP39: 124935.3262 | AQ39: 98586.90605

Sheet DSM Balance
R1: 2016 | AD1: 2017 | AP1: 2018
B2: End March | C2: End April | D2: End May | E2: End June | F2: End July | G2: End August | H2: End September | I2: End October | J2: End November | K2: End December | L2: End January | M2: End February | N2: End March | O2: End April | P2: End May | Q2: End June | R2: End July | S2: End August | T2: End September | U2: End October | V2: End November | W2: End December | X2: End January | Y2: End February | Z2: End March | AA2: End April | AB2: End May | AC2: End June | AD2: End July | AE2: End August | AF2: End September | AG2: End October | AH2: End November | AI2: End December | AJ2: End January | AK2: End February | AL2: End March | AM2: End April | AN2: End May | AO2: End June | AP2: End July
A3: Expected gas tariff rider revenue | C3: 0 | D3: 0 | E3: 0 | H3: =-'Revenue - current rates'!I39 -> -97846.69042 | I3: =-'Revenue - current rates'!J39 -> -249344.3532 | J3: =-'Revenue - current rates'!K39 -> -505320.6675 | K3: =-'Revenue - current rates'!L39 -> -694398.8593 | L3: =-'Revenue - current rates'!M39 -> -691587.9125 | M3: =-'Revenue - current rates'!N39 -> -584882.9743 | N3: =-'Revenue - current rates'!O39 -> -491673.1473 | O3: =-'Revenue - current rates'!P39 -> -315917.0105 | P3: =-'Revenue - current rates'!Q39 -> -185830.0849 | Q3: =-'Revenue - current rates'!R39 -> -122123.311 | R3: =-'Revenue - current rates'!S39 -> -95506.90772 | S3: =-'Revenue - current rates'!T39 -> -97128.6602 | T3: =-'Revenue - current rates'!U39 -> -115448.0771 | U3: =-'Revenue - current rates'!V39 -> -297183.2838 | V3: =-'Revenue - current rates'!W39 -> -518994.9261 | W3: =-'Revenue - current rates'!X39 -> -709650.3398 | X3: =-'Revenue - current rates'!Y39 -> -701806.3932 | Y3: =-'Revenue - current rates'!Z39 -> -579967.2756 | Z3: =-'Revenue - current rates'!AA39 -> -501044.5486 | AA3: =-'Revenue - current rates'!AB39 -> -321728.5894 | AB3: =-'Revenue - current rates'!AC39 -> -188636.3615 | AC3: =-'Revenue - current rates'!AD39 -> -123049.7616 | AD3: =-'Revenue - current rates'!AE39 -> -97336.73596 | AE3: =-'Revenue - current rates'!AF39 -> -97561.89766 | AF3: =-'Revenue - current rates'!AG39 -> -114405.5107 | AG3: =-'Revenue - current rates'!AH39 -> -302547.5945 | AH3: =-'Revenue - current rates'!AI39 -> -527850.9874 | AI3: =-'Revenue - current rates'!AJ39 -> -720963.4017 | AJ3: =-'Revenue - current rates'!AK39 -> -710187.0038 | AK3: =-'Revenue - current rates'!AL39 -> -586688.9394 | AL3: =-'Revenue - current rates'!AM39 -> -506767.6104 | AM3: =-'Revenue - current rates'!AN39 -> -325803.3627 | AN3: =-'Revenue - current rates'!AO39 -> -190546.9882 | AO3: =-'Revenue - current rates'!AP39 -> -124935.3262 | AP3: =-'Revenue - current rates'!AQ39 -> -98586.90605
A4: Expected DSM cash expenditures | C4: 0 | D4: 0 | E4: 0 | H4: =$B13/12 -> 242856.6667 | I4: =$B13/12 -> 242856.6667 | J4: 242856.6667 | K4: =$B13/12 -> 242856.6667 | L4: =$B14/12 -> 302869.9167 | M4: =$B14/12 -> 302869.9167 | N4: =$B14/12 -> 302869.9167 | O4: 302869.9167 | P4: =$B14/12 -> 302869.9167 | Q4: =$B14/12 -> 302869.9167 | R4: =$B14/12 -> 302869.9167 | S4: =$B14/12 -> 302869.9167 | T4: 302869.9167 | U4: 302869.9167 | V4: 302869.9167 | W4: =$B14/12 -> 302869.9167 | X4: =$B15/12 -> 308927.315 | Y4: 308927.315 | Z4: 308927.315 | AA4: 308927.315 | AB4: 308927.315 | AC4: 308927.315 | AD4: 308927.315 | AE4: =$B15/12 -> 308927.315 | AF4: =$B15/12 -> 308927.315 | AG4: 308927.315 | AH4: 308927.315 | AI4: 308927.315 | AJ4: =$B16/12 -> 315105.8613 | AK4: =$B16/12 -> 315105.8613 | AL4: 315105.8613 | AM4: 315105.8613 | AN4: 315105.8613 | AO4: 315105.8613 | AP4: 315105.8613
A5: Accounting Adjustment
A6: Net change in balance | C6: =C3+C4 -> 0 | D6: =D3+D4 -> 0 | E6: 0 | F6: =F3+F4+F5 -> 0 | G6: =G3+G4 -> 0 | H6: =H3+H4 -> 145009.9763 | I6: -6487.686571 | J6: -262464.0009 | K6: -451542.1927 | L6: -388717.9958 | M6: -282013.0576 | N6: -188803.2306 | O6: -13047.09379 | P6: 117039.8318 | Q6: 180746.6056 | R6: =R3+R4 -> 207363.0089 | S6: 205741.2565 | T6: =T3+T4 -> 187421.8395 | U6: 5686.632862 | V6: -216125.0095 | W6: -406780.4231 | X6: -392879.0782 | Y6: -271039.9606 | Z6: -192117.2336 | AA6: -12801.27443 | AB6: 120290.9535 | AC6: 185877.5534 | AD6: 211590.579 | AE6: =AE3+AE4 -> 211365.4173 | AF6: 194521.8043 | AG6: 6379.720467 | AH6: -218923.6724 | AI6: -412036.0867 | AJ6: -395081.1425 | AK6: -271583.0781 | AL6: -191661.7491 | AM6: -10697.50139 | AN6: 124558.8731 | AO6: 190170.5351 | AP6: 216518.9553
A8: Gas Tariff rider balance | B8: 0 | C8: =C6+B8 -> 0 | D8: =D6+C8 -> 0 | E8: 0 | F8: =F6+E8 -> 0 | G8: 1518050 | H8: =H6+G8 -> 1663059.976 | I8: 1656572.29 | J8: 1394108.289 | K8: 942566.0961 | L8: 553848.1003 | M8: =M6+L8 -> 271835.0427 | N8: =N6+M8 -> 83031.81206 | O8: 69984.71827 | P8: 187024.55 | Q8: 367771.1557 | R8: =R6+Q8 -> 575134.1646 | S8: =S6+R8 -> 780875.4211 | T8: =T6+S8 -> 968297.2606 | U8: =U6+T8 -> 973983.8935 | V8: =V6+U8 -> 757858.884 | W8: =W6+V8 -> 351078.4609 | X8: =X6+W8 -> -41800.61735 | Y8: =Y6+X8 -> -312840.5779 | Z8: =Z6+Y8 -> -504957.8115 | AA8: =AA6+Z8 -> -517759.086 | AB8: =AB6+AA8 -> -397468.1324 | AC8: =AC6+AB8 -> -211590.579 | AD8: =AD6+AC8 -> 0 | AE8: =AE6+AD8 -> 211365.4173 | AF8: =AF6+AE8 -> 405887.2216 | AG8: =AG6+AF8 -> 412266.9421 | AH8: =AH6+AG8 -> 193343.2697 | AI8: =AI6+AH8 -> -218692.817 | AJ8: =AJ6+AI8 -> -613773.9595 | AK8: =AK6+AJ8 -> -885357.0376 | AL8: =AL6+AK8 -> -1077018.787 | AM8: =AM6+AL8 -> -1087716.288 | AN8: =AN6+AM8 -> -963157.4149 | AO8: =AO6+AN8 -> -772986.8798 | AP8: =AP6+AO8 -> -556467.9245
A13: 2015 Washington gas DSM budget | B13: 2914280 | C13: CY 2015 expected expenditures (From DSM Business Plan)
A14: 2016 Washington gas DSM budget | B14: 3634439 | C14: CY 2016 expected expenditures
A15: 2017 Washington gas DSM budget | B15: =B14*1.02 -> 3707127.78 | C15: CY 2016 expected expenditures + 2%
A16: 2018 Washington gas DSM budget | B16: =B15*1.02 -> 3781270.336 | C16: CY 2017 expected expenditures + 2%
A18: August Balance | B18: =G8 -> 1518050 | C18: Underfunded (Surcharge)
A19: September 2015 - July 2016 Expenditure Budget | B19: =SUM(G4:R4) -> 3091516.083
A20: Total Projected DSM Balance + Expenditures | B20: =B18+B19 -> 4609566.083
A22: Net Revenue Projected to be Recovered | B22: =SUM(G3:R3) -> -4034431.919 | C22: September 2015 - July 2016
A24: Total Projected DSM Balance (July 2016) | B24: =B20+B22 -> 575134.1646 | C24: Underfunded (Surcharge)
A25: Total Projected DSM Balance (July 2017) | B25: =AD8 -> 0
A26: Total Projected DSM Balance (July 2018) | B26: =AP8 -> -556467.9245 | C26: Overfunded (Rebate)

Sheet RCF
A1: AVISTA UTILITIES
A2: Revenue Conversion Factor
A3: Washington - Gas System
A4: TWELVE MONTHS ENDED DECEMBER 31, 2013
A10: Description | C10: Factor
A12: Revenues | C12: 1
A14: Expense:
A15: Uncollectibles | C15: 0.00485
A17: Commission Fees | C17: 0.002
A19: Washington Excise Tax | C19: 0.038333
A21: Franchise Fees (City of Millwood Expired in 2004) | C21: 0
A23: Total Expense | C23: =C15+C17+C19+C21 -> 0.045183
A25: Net Operating Income Before FIT | C25: =C12-C23 -> 0.954817
A27: Federal Income Tax @ 35% | C27: 0.334186
A29: REVENUE CONVERSION FACTOR | C29: =C25-C27 -> 0.620631

Sheet Billing Determinants
C4: 2015-04-01 | D4: 2015-05-01 | E4: 2015-06-01 | F4: 2015-07-01 | G4: 2015-08-01 | H4: 2015-09-01 | I4: 2015-10-01 | J4: 2015-11-01 | K4: 2015-12-01 | L4: 2016-01-01 | M4: 2016-02-01 | N4: 2016-03-01 | O4: 2016-04-01 | P4: 2016-05-01 | Q4: 2016-06-01 | R4: 2016-07-01 | T4: Annual
A5: WA101 | C5: 9486133.354 | D5: 5309378.715 | E5: 3124073.254 | F5: 2408530.917 | G5: 2301424.979 | H5: 2834532.529 | I5: 7562292.712 | J5: 14133934.07 | K5: 20341217.84 | L5: 20287115.11 | M5: 17074770.98 | N5: 14270012.98 | O5: 9009117.806 | P5: 5138480.747 | Q5: 3122990.778 | R5: 2319085.372 | T5: =SUM(G5:R5) -> 118394975.9 | U5: =T5-'WA Gas - Sched 191'!D7 -> -7360.631586
A6: WA111 | C6: 3705052.061 | D6: 2204442.258 | E6: 1539767.832 | F6: 1253545.869 | G6: 1297445.992 | H6: 1693673.861 | I6: 4096349.305 | J6: 5947535.378 | K6: 7248603.846 | L6: 7205965.885 | M6: 6151763.135 | N6: 5239727.674 | O6: 3508785.148 | P6: 2185289.833 | Q6: 1649906.459 | R6: 1379927.025 | T6: =SUM(G6:R6) -> 47604973.54 | U6: =T6-'WA Gas - Sched 191'!E7 -> -258206.4782
A7: WA121 | C7: 412360.5902 | D7: 309484.8943 | E7: 306925.749 | F7: 312947.0326 | G7: 364280.3772 | H7: 350431.7463 | I7: 657669.776 | J7: 692338.3136 | K7: 660862.4852 | L7: 637995.7388 | M7: 575706.1529 | N7: 521840.6112 | O7: 394805.4528 | P7: 312062.1578 | Q7: 318736.0596 | R7: 322851.1997 | T7: 5809580.071 | U7: =T7-'WA Gas - Sched 191'!F7 -> -35231.38664
A8: WA132 | C8: 104980.7656 | D8: 78812.59891 | E8: 68390.79645 | F8: 64231.54693 | G8: 56180.40978 | H8: 26731.31996 | I8: 68916.96615 | J8: 101811.9496 | K8: 131967.627 | L8: 127188.6752 | M8: 122019.4029 | N8: 107766.2875 | O8: 79730.23435 | P8: 60062.84095 | Q8: 50784.12652 | R8: 42486.69994 | T8: 975646.5398 | U8: =T8-'WA Gas - Sched 191'!G7 -> 25698.98783
A9: WA146 | C9: 2508687.399 | D9: 2163117.278 | E9: 1907188.84 | F9: 1705251.68 | G9: 1842139.525 | H9: 1715712.202 | I9: 1866429.895 | J9: 2553938.815 | K9: 2721719.199 | L9: 3216723.14 | M9: 3461087.387 | N9: 2885773.053 | O9: 2920481.041 | P9: 2399785.82 | Q9: 2081076.311 | R9: 1804359.896 | T9: 29469226.29 | U9: =T9-'WA Gas - Sched 191'!H7 -> 243655.6624
A10: WA148 | C10: 3798396 | D10: 3444836 | E10: 3394978 | F10: 3188893 | G10: 3326120 | H10: 3372541 | I10: 3433105 | J10: 4003772 | K10: 4310120 | L10: 4662531 | M10: 4750261 | N10: 4271089 | O10: 4296316 | P10: 3876453 | Q10: 3550405 | R10: 3442600 | T10: 47295313 | U10: =T10-'WA Gas - Sched 191'!I7 -> -20896
C12: =SUM(C5:C11) -> 20015610.17 | D12: =SUM(D5:D11) -> 13510071.74 | E12: 10341324.47 | F12: 8933400.045 | G12: 9187591.283 | H12: 9993622.659 | I12: 17684763.65 | J12: 27433330.53 | K12: 35414491 | L12: 36137519.55 | M12: 32135608.05 | N12: 27296209.61 | O12: 20209235.68 | P12: 13972134.4 | Q12: 10773898.73 | R12: 9311310.193 | T12: =SUM(T5:T11) -> 249549715.3
G14: 2016-08-01 | H14: 2016-09-01 | I14: 2016-10-01 | J14: 2016-11-01 | K14: 2016-12-01 | L14: 2017-01-01 | M14: 2017-02-01 | N14: 2017-03-01 | O14: 2017-04-01 | P14: 2017-05-01 | Q14: 2017-06-01 | R14: 2017-07-01 | T14: Annual
A15: WA101 | G15: 2359924.515 | H15: 2749531.371 | I15: 7596154.964 | J15: 14516282.9 | K15: 20641596.25 | L15: 20539153.95 | M15: 16920096.9 | N15: 14522526.75 | O15: 9197313.54 | P15: 5222946.694 | Q15: 3187789.797 | R15: 2446827.805 | T15: =SUM(G15:R15) -> 119900145.4
A16: WA111 | G16: 1394371.344 | H16: 1774045.294 | I16: 4177258.999 | J16: 6117214.108 | K16: 7590760.029 | L16: 7383061.609 | M16: 6130099.39 | N16: 5375184.398 | O16: 3553706.555 | P16: 2210765.68 | Q16: 1611502.945 | R16: 1307545.017 | T16: =SUM(G16:R16) -> 48625515.37
A17: WA121 | G17: 354279.566 | H17: 380119.6552 | I17: 673214.0649 | J17: 704359.216 | K17: 683964.0215 | L17: 640881.0028 | M17: 557961.3166 | N17: 523118.4511 | O17: 393503.3534 | P17: 315534.0449 | Q17: 318649.5669 | R17: 319707.8395 | T17: 5865292.099
A18: WA132 | G18: 28035.04951 | H18: 28583.19732 | I18: 69511.46123 | J18: 102567.89 | K18: 135869.8622 | L18: 127430.8508 | M18: 118117.0664 | N18: 108158.8687 | O18: 79591.33983 | P18: 60682.96849 | Q18: 50564.66182 | R18: 41734.40779 | T18: 950847.6241
A19: WA146 | G19: 1614824.344 | H19: 1704318.754 | I19: 1861482.862 | J19: 2552504.954 | K19: 2731334.179 | L19: 3231444.722 | M19: 3503435.284 | N19: 2915517.921 | O19: 2936559.715 | P19: 2400940.356 | Q19: 2084993.792 | R19: 1810389.497 | T19: 29347746.38
A20: WA148 | G20: 3272157 | H20: 3407902 | I20: 3472603 | J20: 4046445 | K20: 4355432 | L20: 4709037 | M20: 4797603 | N20: 4318999 | O20: 4344578 | P20: 3924903 | Q20: 3598917 | R20: 3491074 | T20: 47739650
T22: =SUM(T15:T21) -> 252429196.9
G24: 2017-08-01 | H24: 2017-09-01 | I24: 2017-10-01 | J24: 2017-11-01 | K24: 2017-12-01 | L24: 2018-01-01 | M24: 2018-02-01 | N24: 2018-03-01 | O24: 2018-04-01 | P24: 2018-05-01 | Q24: 2018-06-01 | R24: 2018-07-01 | T24: Annual
G25: 2382505.85 | H25: 2726187.341 | I25: 7813140.106 | J25: 14724702.56 | K25: 20919815.08 | L25: 20754124.24 | M25: 17083215.1 | N25: 14672743.7 | O25: 9302012.47 | P25: 5272642.074 | Q25: 3269929.267 | R25: 2503113.746 | T25: =SUM(G25:R25) -> 121424131.5
G26: 1370674.111 | H26: 1743524.074 | I26: 4156430.098 | J26: 6271826.311 | K26: 7784391.303 | L26: 7522685.401 | M26: 6254332.874 | N26: 5467385.632 | O26: 3620529.924 | P26: 2240995.895 | Q26: 1600360.768 | R26: 1290293.646 | T26: =SUM(G26:R26) -> 49323430.04
G27: 369882.1635 | H27: 389233.8257 | I27: 677692.0206 | J27: 717900.6883 | K27: 689880.5214 | L27: 638378.5466 | M27: 555845.694 | N27: 520168.7565 | O27: 392982.4051 | P27: 315637.0275 | Q27: 316661.6947 | R27: 325350.8989 | T27: 5909614.243
G28: 28985.90745 | H28: 29010.98369 | I28: 69528.03271 | J28: 104236.867 | K28: 136976.7516 | L28: 127051.0271 | M28: 117864.1021 | N28: 107748.3542 | O28: 79563.37256 | P28: 60657.15287 | Q28: 50094.73859 | R28: 42246.79207 | T28: 953964.0819
G29: 1622602.839 | H29: 1713150.75 | I29: 1871149.891 | J29: 2563087.109 | K29: 2742592.098 | L29: 3242869.016 | M29: 3514583.474 | N29: 2923818.064 | O29: 2942858.149 | P29: 2406604.31 | Q29: 2090991.525 | R29: 1816495.964 | T29: 29450803.19
G30: 3320518 | H30: 3456088 | I30: 3520570 | J30: 4094156 | K30: 4402860 | L30: 4756082 | M30: 4844249 | N30: 4365230 | O30: 4390387 | P30: 3970281 | Q30: 3643858 | R30: 3535571 | T30: 48299850
T32: =SUM(T25:T31) -> 255361793.1
